[Event "Titled Tuesday Blitz March 01 Late 2022"]
[White "Urazayev, Arystanbek"]
[Black "Rosen, Eric"]
[WhiteFideId "13709810"]
[BlackFideId "2032562"]
[WhiteElo "2321"]
[BlackElo "2362"]
[Result "1/2-1/2"]
[Round "04"]
[TimeControl "180+1"]
[Date "2022.03.01"]
[WhiteClock "0:00:08"]
[BlackClock "0:00:07"]

1. d4 {[%clk 0:03:00]}  d5 {[%clk 0:02:58]} 2. c4 {[%clk 0:03:01]}  e6 {[%clk 0:02:59]} 3. Nf3 {[%clk 0:03:02]}  Nf6 {[%clk 0:02:59]} 4. Nc3 {[%clk 0:03:01]}  a6 {[%clk 0:02:59]} 5. c5 {[%clk 0:02:52]}  Nc6 {[%clk 0:02:50]} 6. Bf4 {[%clk 0:02:49]}  b6 {[%clk 0:02:49]} 7. cxb6 {[%clk 0:02:49]}  cxb6 {[%clk 0:02:50]} 8. e3 {[%clk 0:02:49]}  Bd6 {[%clk 0:02:49]} 9. Bxd6 {[%clk 0:02:49]}  Qxd6 {[%clk 0:02:49]} 10. Bd3 {[%clk 0:02:49]}  O-O {[%clk 0:02:48]} 11. O-O {[%clk 0:02:49]}  Bb7 {[%clk 0:02:49]} 12. Rc1 {[%clk 0:02:39]}  b5 {[%clk 0:02:47]} 13. Ne2 {[%clk 0:02:35]}  Rac8 {[%clk 0:02:45]} 14. Nf4 {[%clk 0:02:34]}  Rfe8 {[%clk 0:02:21]} 15. Bb1 {[%clk 0:02:32]}  g6 {[%clk 0:02:16]} 16. Nd3 {[%clk 0:02:32]}  Nd7 {[%clk 0:02:15]} 17. Qd2 {[%clk 0:02:30]}  Rc7 {[%clk 0:02:11]} 18. h4 {[%clk 0:02:17]}  Rec8 {[%clk 0:02:06]} 19. h5 {[%clk 0:02:14]}  Nb6 {[%clk 0:01:52]} 20. b3 {[%clk 0:02:13]}  Nd7 {[%clk 0:01:50]} 21. g3 {[%clk 0:02:12]}  e5 {[%clk 0:01:35]} 22. hxg6 {[%clk 0:01:52]}  hxg6 {[%clk 0:01:34]} 23. dxe5 {[%clk 0:01:46]}  Ncxe5 {[%clk 0:01:29]} 24. Nfxe5 {[%clk 0:01:45]}  Nxe5 {[%clk 0:01:30]} 25. Nxe5 {[%clk 0:01:46]}  Qxe5 {[%clk 0:01:31]} 26. Rxc7 {[%clk 0:01:43]}  Rxc7 {[%clk 0:01:30]} 27. Qd4 {[%clk 0:01:43]}  Qxd4 {[%clk 0:01:11]} 28. exd4 {[%clk 0:01:43]}  b4 {[%clk 0:01:10]} 29. f3 {[%clk 0:01:36]}  a5 {[%clk 0:01:08]} 30. Bd3 {[%clk 0:01:36]}  Rc3 {[%clk 0:01:03]} 31. Rd1 {[%clk 0:01:36]}  Bc8 {[%clk 0:00:58]} 32. Kf2 {[%clk 0:01:34]}  Bf5 {[%clk 0:00:55]} 33. Bxf5 {[%clk 0:01:02]}  gxf5 {[%clk 0:00:55]} 34. Rd2 {[%clk 0:01:02]}  Kg7 {[%clk 0:00:53]} 35. Re2 {[%clk 0:01:02]}  Kf6 {[%clk 0:00:53]} 36. Re5 {[%clk 0:01:02]}  Rc2+ {[%clk 0:00:53]} 37. Ke3 {[%clk 0:01:02]}  Rxa2 {[%clk 0:00:45]} 38. Rxd5 {[%clk 0:01:02]}  Ra3 {[%clk 0:00:27]} 39. Kf4 {[%clk 0:01:00]}  Rxb3 {[%clk 0:00:09]} 40. Rxf5+ {[%clk 0:01:00]}  Ke6 {[%clk 0:00:10]} 41. Rxa5 {[%clk 0:01:00]}  Rb1 {[%clk 0:00:08]} 42. g4 {[%clk 0:00:46]}  b3 {[%clk 0:00:08]} 43. Re5+ {[%clk 0:00:39]}  Kd6 {[%clk 0:00:07]} 44. Rb5 {[%clk 0:00:39]}  b2 {[%clk 0:00:07]} 45. g5 {[%clk 0:00:35]}  Rd1 {[%clk 0:00:06]} 46. Rxb2 {[%clk 0:00:35]}  Rxd4+ {[%clk 0:00:06]} 47. Kf5 {[%clk 0:00:36]}  Ke7 {[%clk 0:00:07]} 48. f4 {[%clk 0:00:27]}  Rd5+ {[%clk 0:00:07]} 49. Kg4 {[%clk 0:00:27]}  Rd6 {[%clk 0:00:06]} 50. f5 {[%clk 0:00:20]}  Rd1 {[%clk 0:00:06]} 51. f6+ {[%clk 0:00:20]}  Ke6 {[%clk 0:00:05]} 52. Re2+ {[%clk 0:00:20]}  Kd6 {[%clk 0:00:03]} 53. Re7 {[%clk 0:00:17]}  Rg1+ {[%clk 0:00:04]} 54. Kf4 {[%clk 0:00:17]}  Rf1+ {[%clk 0:00:04]} 55. Kg3 {[%clk 0:00:10]}  Rg1+ {[%clk 0:00:05]} 56. Kh4 {[%clk 0:00:10]}  Rh1+ {[%clk 0:00:05]} 57. Kg4 {[%clk 0:00:10]}  Rg1+ {[%clk 0:00:06]} 58. Kf3 {[%clk 0:00:10]}  Rxg5 {[%clk 0:00:05]} 59. Rxf7 {[%clk 0:00:11]}  Ke6 {[%clk 0:00:06]} 60. Rf8 {[%clk 0:00:08]}  Rf5+ {[%clk 0:00:06]} 61. Ke4 {[%clk 0:00:09]}  Rxf6 {[%clk 0:00:07]} 62. Ra8 {[%clk 0:00:09]}  Kf7 {[%clk 0:00:07]} 63. Ra7+ {[%clk 0:00:08]} 1/2-1/2


[Site "https://www.chess.com"]

[Event "Titled Tuesday Blitz March 01 Late 2022"]
[White "Villegas, Pierre"]
[Black "Gelman, Alexander"]
[WhiteFideId "654183"]
[BlackFideId "4118316"]
[WhiteElo "2509"]
[BlackElo "2726"]
[Result "1-0"]
[Round "04"]
[TimeControl "180+1"]
[Date "2022.03.02"]
[WhiteClock "0:00:21"]
[BlackClock "0:00:16"]

1. c4 {[%clk 0:03:00]}  Nf6 {[%clk 0:02:56]} 2. Nc3 {[%clk 0:03:00]}  c5 {[%clk 0:02:56]} 3. g3 {[%clk 0:02:58]}  d6 {[%clk 0:02:56]} 4. Bg2 {[%clk 0:02:59]}  a6 {[%clk 0:02:57]} 5. a3 {[%clk 0:02:57]}  e6 {[%clk 0:02:57]} 6. Rb1 {[%clk 0:02:56]}  Be7 {[%clk 0:02:57]} 7. b4 {[%clk 0:02:56]}  O-O {[%clk 0:02:57]} 8. Nf3 {[%clk 0:02:53]}  Qc7 {[%clk 0:02:56]} 9. d3 {[%clk 0:02:53]}  Nbd7 {[%clk 0:02:56]} 10. O-O {[%clk 0:02:52]}  Rb8 {[%clk 0:02:54]} 11. Bd2 {[%clk 0:02:39]}  b6 {[%clk 0:02:53]} 12. Qb3 {[%clk 0:02:31]}  Bb7 {[%clk 0:02:52]} 13. Rfc1 {[%clk 0:02:29]}  h6 {[%clk 0:02:51]} 14. Ne1 {[%clk 0:02:21]}  Bxg2 {[%clk 0:02:50]} 15. Nxg2 {[%clk 0:02:21]}  Rfc8 {[%clk 0:02:47]} 16. e4 {[%clk 0:02:20]}  Ne5 {[%clk 0:02:45]} 17. Ne1 {[%clk 0:02:16]}  Nfd7 {[%clk 0:02:38]} 18. Ne2 {[%clk 0:02:08]}  Bf6 {[%clk 0:02:34]} 19. Bc3 {[%clk 0:02:02]}  Qd8 {[%clk 0:02:28]} 20. d4 {[%clk 0:01:53]}  Nxc4 {[%clk 0:01:54]} 21. dxc5 {[%clk 0:01:41]}  b5 {[%clk 0:01:51]} 22. cxd6 {[%clk 0:01:34]}  Nxd6 {[%clk 0:01:42]} 23. Bxf6 {[%clk 0:01:25]}  Qxf6 {[%clk 0:01:43]} 24. Rxc8+ {[%clk 0:01:23]}  Rxc8 {[%clk 0:01:43]} 25. Qd3 {[%clk 0:01:23]}  Rc6 {[%clk 0:01:29]} 26. f4 {[%clk 0:01:18]}  Qe7 {[%clk 0:01:21]} 27. Rd1 {[%clk 0:01:12]}  Nb6 {[%clk 0:01:13]} 28. Nd4 {[%clk 0:01:03]}  Rc8 {[%clk 0:01:11]} 29. Nb3 {[%clk 0:01:01]}  Ndc4 {[%clk 0:00:58]} 30. Nc5 {[%clk 0:00:59]}  Na4 {[%clk 0:00:25]} 31. Nxa4 {[%clk 0:00:37]}  bxa4 {[%clk 0:00:26]} 32. Rc1 {[%clk 0:00:28]}  Qa7+ {[%clk 0:00:26]} 33. Kh1 {[%clk 0:00:28]}  Qf2 {[%clk 0:00:23]} 34. Ng2 {[%clk 0:00:25]}  Nb6 {[%clk 0:00:17]} 35. Rxc8+ {[%clk 0:00:21]}  Nxc8 {[%clk 0:00:18]} 36. h3 {[%clk 0:00:22]}  Ne7 {[%clk 0:00:17]} 37. Qd8+ {[%clk 0:00:20]}  Kh7 {[%clk 0:00:15]} 38. Qxe7 {[%clk 0:00:21]}  Qxg3 {[%clk 0:00:15]} 39. Qxf7 {[%clk 0:00:21]}  Qxa3 {[%clk 0:00:16]} 40. f5 {[%clk 0:00:21]}  exf5 {[%clk 0:00:14]} 41. Qxf5+ {[%clk 0:00:21]}  Kg8 {[%clk 0:00:14]} 42. e5 {[%clk 0:00:21]}  Qxb4 {[%clk 0:00:14]} 43. e6 {[%clk 0:00:21]}  a3 {[%clk 0:00:15]} 44. Qf7+ {[%clk 0:00:21]}  Kh7 {[%clk 0:00:16]} 45. e7 {[%clk 0:00:21]}  a2 {[%clk 0:00:16]} 46. Qf5+ {[%clk 0:00:21]}  g6 {[%clk 0:00:16]} 47. Qf7+ {[%clk 0:00:21]} 1-0


[Site "https://www.chess.com"]

[Event "Titled Tuesday Blitz March 01 Late 2022"]
[White "Yordanov, Nikolay Plamenov"]
[Black "Kaplan, Ebru"]
[WhiteFideId "2907445"]
[BlackFideId "6315194"]
[WhiteElo "2248"]
[BlackElo "1941"]
[Result "1-0"]
[Round "04"]
[TimeControl "180+1"]
[Date "2022.03.02"]
[WhiteClock "0:00:09"]
[BlackClock "0:00:02"]

1. d4 {[%clk 0:03:00]}  d5 {[%clk 0:02:59]} 2. Bf4 {[%clk 0:03:01]}  Nf6 {[%clk 0:02:59]} 3. e3 {[%clk 0:03:01]}  c5 {[%clk 0:02:58]} 4. c3 {[%clk 0:03:01]}  e6 {[%clk 0:02:58]} 5. Nf3 {[%clk 0:03:01]}  Bd6 {[%clk 0:02:58]} 6. Bg3 {[%clk 0:03:01]}  Qc7 {[%clk 0:02:58]} 7. Nbd2 {[%clk 0:03:01]}  Nbd7 {[%clk 0:02:58]} 8. Bd3 {[%clk 0:02:58]}  O-O {[%clk 0:02:57]} 9. O-O {[%clk 0:02:58]}  b6 {[%clk 0:02:54]} 10. e4 {[%clk 0:02:52]}  dxe4 {[%clk 0:02:50]} 11. Nxe4 {[%clk 0:02:52]}  Nxe4 {[%clk 0:02:50]} 12. Bxe4 {[%clk 0:02:52]}  Rb8 {[%clk 0:02:38]} 13. dxc5 {[%clk 0:02:16]}  Bxg3 {[%clk 0:02:36]} 14. hxg3 {[%clk 0:02:16]}  Nxc5 {[%clk 0:02:34]} 15. Bxh7+ {[%clk 0:02:06]}  Kxh7 {[%clk 0:02:28]} 16. Ng5+ {[%clk 0:02:05]}  Kg6 {[%clk 0:02:21]} 17. Qg4 {[%clk 0:02:05]}  e5 {[%clk 0:02:21]} 18. Qh4 {[%clk 0:02:05]}  Ne6 {[%clk 0:01:32]} 19. Qh7+ {[%clk 0:00:53]}  Kf6 {[%clk 0:01:31]} 20. f4 {[%clk 0:00:40]}  e4 {[%clk 0:00:23]} 21. Nxe4+ {[%clk 0:00:40]}  Ke7 {[%clk 0:00:23]} 22. f5 {[%clk 0:00:40]}  Bb7 {[%clk 0:00:20]} 23. fxe6 {[%clk 0:00:25]}  Bxe4 {[%clk 0:00:16]} 24. Qxg7 {[%clk 0:00:26]}  Qc5+ {[%clk 0:00:14]} 25. Rf2 {[%clk 0:00:26]}  Kxe6 {[%clk 0:00:10]} 26. Re1 {[%clk 0:00:22]}  Kd5 {[%clk 0:00:06]} 27. b4 {[%clk 0:00:17]}  Qe7 {[%clk 0:00:03]} 28. Qd4+ {[%clk 0:00:16]}  Kc6 {[%clk 0:00:03]} 29. Rxe4 {[%clk 0:00:16]}  Qg5 {[%clk 0:00:02]} 30. Qc4+ {[%clk 0:00:11]}  Kb7 {[%clk 0:00:02]} 31. Rd4 {[%clk 0:00:10]}  Rbe8 {[%clk 0:00:02]} 32. Rd7+ {[%clk 0:00:09]} 1-0


[Site "https://www.chess.com"]

[Event "Titled Tuesday Blitz March 01 Late 2022"]
[White "Adewumi, Tanitoluwa"]
[Black "Moral Garcia, Serafin"]
[WhiteFideId "30966396"]
[BlackFideId "2201925"]
[WhiteElo "2548"]
[BlackElo "2228"]
[Result "1/2-1/2"]
[Round "05"]
[TimeControl "180+1"]
[Date "2022.03.02"]
[WhiteClock "0:00:04"]
[BlackClock "0:00:32"]

1. Nf3 {[%clk 0:03:00]}  Nf6 {[%clk 0:02:59]} 2. d4 {[%clk 0:02:51]}  g6 {[%clk 0:02:57]} 3. c4 {[%clk 0:02:51]}  Bg7 {[%clk 0:02:57]} 4. Nc3 {[%clk 0:02:52]}  d5 {[%clk 0:02:57]} 5. cxd5 {[%clk 0:02:53]}  Nxd5 {[%clk 0:02:57]} 6. e3 {[%clk 0:02:52]}  O-O {[%clk 0:02:56]} 7. Bc4 {[%clk 0:02:52]}  Nb6 {[%clk 0:02:55]} 8. Bb3 {[%clk 0:02:52]}  c5 {[%clk 0:02:55]} 9. dxc5 {[%clk 0:02:45]}  N6d7 {[%clk 0:02:54]} 10. Ne4 {[%clk 0:02:18]}  Na6 {[%clk 0:02:53]} 11. c6 {[%clk 0:02:17]}  bxc6 {[%clk 0:02:53]} 12. O-O {[%clk 0:02:18]}  Ndc5 {[%clk 0:02:48]} 13. Nxc5 {[%clk 0:02:17]}  Nxc5 {[%clk 0:02:47]} 14. Bc2 {[%clk 0:02:09]}  Ba6 {[%clk 0:02:42]} 15. Re1 {[%clk 0:02:06]}  Nd3 {[%clk 0:02:39]} 16. Bxd3 {[%clk 0:02:05]}  Qxd3 {[%clk 0:02:38]} 17. Qa4 {[%clk 0:02:02]}  Bb5 {[%clk 0:02:38]} 18. Qb4 {[%clk 0:02:01]}  a5 {[%clk 0:02:36]} 19. Qxe7 {[%clk 0:01:59]}  Rfe8 {[%clk 0:02:34]} 20. Qc5 {[%clk 0:01:59]}  a4 {[%clk 0:02:30]} 21. a3 {[%clk 0:01:46]}  Rad8 {[%clk 0:02:28]} 22. Qb4 {[%clk 0:01:38]}  Bf8 {[%clk 0:02:14]} 23. Qc3 {[%clk 0:01:24]}  Qxc3 {[%clk 0:02:13]} 24. bxc3 {[%clk 0:01:24]}  Bg7 {[%clk 0:02:03]} 25. Bb2 {[%clk 0:01:24]}  Bc4 {[%clk 0:02:02]} 26. Rad1 {[%clk 0:01:19]}  c5 {[%clk 0:01:42]} 27. Rd2 {[%clk 0:01:12]}  Bb3 {[%clk 0:01:39]} 28. e4 {[%clk 0:00:58]}  Bh6 {[%clk 0:01:33]} 29. Rxd8 {[%clk 0:00:50]}  Rxd8 {[%clk 0:01:33]} 30. Bc1 {[%clk 0:00:48]}  Bg7 {[%clk 0:01:33]} 31. e5 {[%clk 0:00:47]}  Rd3 {[%clk 0:01:29]} 32. Bd2 {[%clk 0:00:37]}  Bd5 {[%clk 0:01:26]} 33. Re3 {[%clk 0:00:34]}  Rxe3 {[%clk 0:01:20]} 34. Bxe3 {[%clk 0:00:33]}  Bxf3 {[%clk 0:01:20]} 35. gxf3 {[%clk 0:00:33]}  Bxe5 {[%clk 0:01:20]} 36. Bxc5 {[%clk 0:00:33]}  Bxc3 {[%clk 0:01:20]} 37. Kf1 {[%clk 0:00:33]}  Kg7 {[%clk 0:01:20]} 38. Ke2 {[%clk 0:00:33]}  Kf6 {[%clk 0:01:19]} 39. Kd3 {[%clk 0:00:33]}  Be1 {[%clk 0:01:17]} 40. Ke2 {[%clk 0:00:32]}  Ba5 {[%clk 0:01:16]} 41. Kd3 {[%clk 0:00:32]}  Kf5 {[%clk 0:01:16]} 42. Be3 {[%clk 0:00:27]}  Ke5 {[%clk 0:01:11]} 43. Kc4 {[%clk 0:00:27]}  f5 {[%clk 0:01:11]} 44. Kb5 {[%clk 0:00:24]}  Bc7 {[%clk 0:01:08]} 45. Kxa4 {[%clk 0:00:20]}  Kd5 {[%clk 0:01:08]} 46. h3 {[%clk 0:00:20]}  Kc4 {[%clk 0:01:08]} 47. f4 {[%clk 0:00:13]}  Bd8 {[%clk 0:01:06]} 48. Bd2 {[%clk 0:00:14]}  Bb6 {[%clk 0:01:03]} 49. Be3 {[%clk 0:00:12]}  Bc7 {[%clk 0:01:03]} 50. Bd2 {[%clk 0:00:05]}  Kd3 {[%clk 0:01:03]} 51. Be3 {[%clk 0:00:04]}  Kc4 {[%clk 0:00:56]} 52. Bc1 {[%clk 0:00:04]}  h6 {[%clk 0:00:56]} 53. Be3 {[%clk 0:00:03]}  Bd8 {[%clk 0:00:49]} 54. Ba7 {[%clk 0:00:02]}  Be7 {[%clk 0:00:37]} 55. Ka5 {[%clk 0:00:01]}  Bxa3 {[%clk 0:00:37]} 56. Kb6 {[%clk 0:00:01]}  Bc1 {[%clk 0:00:37]} 57. Kc6 {[%clk 0:00:01]}  Bxf4 {[%clk 0:00:37]} 58. Kd7 {[%clk 0:00:02]}  g5 {[%clk 0:00:34]} 59. Ke6 {[%clk 0:00:02]}  g4 {[%clk 0:00:35]} 60. hxg4 {[%clk 0:00:02]}  fxg4 {[%clk 0:00:36]} 61. Kf5 {[%clk 0:00:03]}  Bd2 {[%clk 0:00:32]} 62. Kxg4 {[%clk 0:00:03]}  Kd3 {[%clk 0:00:33]} 63. f3 {[%clk 0:00:04]}  Bc1 {[%clk 0:00:31]} 64. f4 {[%clk 0:00:04]}  Bxf4 {[%clk 0:00:32]} 65. Kxf4 {[%clk 0:00:04]}  h5 {[%clk 0:00:32]} 66. Kg5 {[%clk 0:00:04]}  h4 {[%clk 0:00:32]} 67. Kg4 {[%clk 0:00:04]} 1/2-1/2


[Site "https://www.chess.com"]

[Event "Titled Tuesday Blitz March 01 Late 2022"]
[White "Antonova, Nadezhda"]
[Black "Tomiello, Mateus Costamilan"]
[WhiteFideId "14700182"]
[BlackFideId "22701958"]
[WhiteElo "1765"]
[BlackElo "1975"]
[Result "0-1"]
[Round "05"]
[TimeControl "180+1"]
[Date "2022.03.02"]
[WhiteClock "0:00:16"]
[BlackClock "0:01:15"]

1. Nf3 {[%clk 0:02:59]}  Nf6 {[%clk 0:02:56]} 2. b3 {[%clk 0:02:59]}  g6 {[%clk 0:02:55]} 3. Bb2 {[%clk 0:02:59]}  Bg7 {[%clk 0:02:52]} 4. g3 {[%clk 0:03:00]}  O-O {[%clk 0:02:52]} 5. Bg2 {[%clk 0:03:00]}  d6 {[%clk 0:02:52]} 6. d4 {[%clk 0:03:00]}  Ne4 {[%clk 0:02:51]} 7. O-O {[%clk 0:02:54]}  c5 {[%clk 0:02:51]} 8. Nbd2 {[%clk 0:02:51]}  Nxd2 {[%clk 0:02:46]} 9. Qxd2 {[%clk 0:02:50]}  Nc6 {[%clk 0:02:47]} 10. c4 {[%clk 0:02:42]}  cxd4 {[%clk 0:02:37]} 11. Nxd4 {[%clk 0:02:39]}  Bd7 {[%clk 0:02:37]} 12. e4 {[%clk 0:02:30]}  a6 {[%clk 0:02:33]} 13. Rad1 {[%clk 0:02:19]}  Rc8 {[%clk 0:02:29]} 14. Rfe1 {[%clk 0:02:03]}  Qc7 {[%clk 0:02:17]} 15. Ne2 {[%clk 0:01:48]}  b5 {[%clk 0:02:13]} 16. Bxg7 {[%clk 0:01:41]}  Kxg7 {[%clk 0:02:13]} 17. cxb5 {[%clk 0:01:41]}  axb5 {[%clk 0:02:13]} 18. Nc3 {[%clk 0:01:42]}  Qa5 {[%clk 0:02:02]} 19. Qb2 {[%clk 0:01:29]}  f6 {[%clk 0:01:54]} 20. Nd5 {[%clk 0:01:25]}  Be6 {[%clk 0:01:47]} 21. Nf4 {[%clk 0:01:17]}  Bf7 {[%clk 0:01:45]} 22. Bh3 {[%clk 0:01:11]}  Rc7 {[%clk 0:01:37]} 23. Be6 {[%clk 0:00:53]}  g5 {[%clk 0:01:21]} 24. Bxf7 {[%clk 0:00:46]}  gxf4 {[%clk 0:01:20]} 25. Bd5 {[%clk 0:00:42]}  Ne5 {[%clk 0:01:18]} 26. gxf4 {[%clk 0:00:25]}  Nf3+ {[%clk 0:01:17]} 27. Kg2 {[%clk 0:00:21]}  Nxe1+ {[%clk 0:01:17]} 28. Kh3 {[%clk 0:00:16]}  Qc3+ {[%clk 0:01:15]} 0-1


[Site "https://www.chess.com"]

[Event "Titled Tuesday Blitz March 01 Late 2022"]
[White "Bilych, Olexiy"]
[Black "Bryakin, Mikhail"]
[WhiteFideId "14156504"]
[BlackFideId "4165314"]
[WhiteElo "2195"]
[BlackElo "2421"]
[Result "1-0"]
[Round "05"]
[TimeControl "180+1"]
[Date "2022.03.01"]
[WhiteClock "0:00:06"]
[BlackClock "0:00:16"]

1. d4 {[%clk 0:03:00]}  Nf6 {[%clk 0:02:57]} 2. c4 {[%clk 0:03:00]}  g6 {[%clk 0:02:57]} 3. Nc3 {[%clk 0:02:59]}  d5 {[%clk 0:02:57]} 4. cxd5 {[%clk 0:02:55]}  Nxd5 {[%clk 0:02:58]} 5. e4 {[%clk 0:02:55]}  Nxc3 {[%clk 0:02:59]} 6. bxc3 {[%clk 0:02:56]}  c5 {[%clk 0:02:59]} 7. Be3 {[%clk 0:02:53]}  Bg7 {[%clk 0:02:58]} 8. Qd2 {[%clk 0:02:53]}  O-O {[%clk 0:02:54]} 9. Rc1 {[%clk 0:02:53]}  Qa5 {[%clk 0:02:43]} 10. d5 {[%clk 0:02:40]}  b6 {[%clk 0:02:38]} 11. h4 {[%clk 0:02:18]}  Ba6 {[%clk 0:02:31]} 12. c4 {[%clk 0:02:13]}  Qxd2+ {[%clk 0:02:31]} 13. Kxd2 {[%clk 0:02:13]}  Nd7 {[%clk 0:02:27]} 14. h5 {[%clk 0:01:56]}  f5 {[%clk 0:02:24]} 15. exf5 {[%clk 0:01:44]}  gxf5 {[%clk 0:02:23]} 16. Nh3 {[%clk 0:01:36]}  Ne5 {[%clk 0:02:11]} 17. Nf4 {[%clk 0:01:35]}  Bc8 {[%clk 0:02:02]} 18. Be2 {[%clk 0:01:18]}  Bd7 {[%clk 0:01:55]} 19. h6 {[%clk 0:01:10]}  Bf6 {[%clk 0:01:55]} 20. Nh5 {[%clk 0:00:44]}  Bh8 {[%clk 0:01:47]} 21. Rhe1 {[%clk 0:00:33]}  Ng6 {[%clk 0:01:40]} 22. g3 {[%clk 0:00:30]}  e5 {[%clk 0:01:36]} 23. f4 {[%clk 0:00:18]}  Rae8 {[%clk 0:01:35]} 24. fxe5 {[%clk 0:00:17]}  Bxe5 {[%clk 0:01:30]} 25. Rf1 {[%clk 0:00:15]}  Bxg3 {[%clk 0:01:25]} 26. Nxg3 {[%clk 0:00:15]}  f4 {[%clk 0:01:25]} 27. Bf2 {[%clk 0:00:11]}  fxg3 {[%clk 0:01:23]} 28. Bxg3 {[%clk 0:00:12]}  Rf5 {[%clk 0:01:13]} 29. Bd3 {[%clk 0:00:11]}  Rh5 {[%clk 0:01:11]} 30. Rh1 {[%clk 0:00:08]}  Rg5 {[%clk 0:01:11]} 31. Bd6 {[%clk 0:00:07]}  Rg2+ {[%clk 0:01:10]} 32. Kc3 {[%clk 0:00:07]}  Re3 {[%clk 0:01:09]} 33. Rce1 {[%clk 0:00:07]}  Rf3 {[%clk 0:01:05]} 34. Rhf1 {[%clk 0:00:06]}  Rh3 {[%clk 0:00:59]} 35. Rh1 {[%clk 0:00:03]}  Rxh1 {[%clk 0:00:46]} 36. Rxh1 {[%clk 0:00:04]}  Rxa2 {[%clk 0:00:43]} 37. Bxg6 {[%clk 0:00:03]}  Ra3+ {[%clk 0:00:37]} 38. Kb2 {[%clk 0:00:03]}  Re3 {[%clk 0:00:36]} 39. Bc2 {[%clk 0:00:03]}  Re2 {[%clk 0:00:36]} 40. Rg1+ {[%clk 0:00:04]}  Kf7 {[%clk 0:00:37]} 41. Rg7+ {[%clk 0:00:03]}  Ke8 {[%clk 0:00:37]} 42. Rxh7 {[%clk 0:00:04]}  Rxc2+ {[%clk 0:00:36]} 43. Kxc2 {[%clk 0:00:03]}  Bf5+ {[%clk 0:00:37]} 44. Kc3 {[%clk 0:00:03]}  Bxh7 {[%clk 0:00:37]} 45. Bb8 {[%clk 0:00:04]}  Kd7 {[%clk 0:00:35]} 46. Bxa7 {[%clk 0:00:04]}  Kc7 {[%clk 0:00:36]} 47. Kd2 {[%clk 0:00:03]}  Kb7 {[%clk 0:00:35]} 48. d6 {[%clk 0:00:03]}  Kc6 {[%clk 0:00:28]} 49. Bb8 {[%clk 0:00:03]}  Kd7 {[%clk 0:00:25]} 50. Ke3 {[%clk 0:00:03]}  Ke6 {[%clk 0:00:26]} 51. Bc7 {[%clk 0:00:04]}  Kd7 {[%clk 0:00:25]} 52. Kf4 {[%clk 0:00:03]}  Bd3 {[%clk 0:00:24]} 53. Ke5 {[%clk 0:00:03]}  Kc6 {[%clk 0:00:15]} 54. Ke6 {[%clk 0:00:02]}  Bxc4+ {[%clk 0:00:11]} 55. Ke7 {[%clk 0:00:03]}  Bd3 {[%clk 0:00:10]} 56. d7 {[%clk 0:00:03]}  Bf5 {[%clk 0:00:11]} 57. d8=Q {[%clk 0:00:03]}  Kb5 {[%clk 0:00:11]} 58. Bxb6 {[%clk 0:00:03]}  Kc4 {[%clk 0:00:11]} 59. Bxc5 {[%clk 0:00:03]}  Bd3 {[%clk 0:00:12]} 60. Qd4+ {[%clk 0:00:03]}  Kb5 {[%clk 0:00:13]} 61. Qxd3+ {[%clk 0:00:04]}  Kc6 {[%clk 0:00:14]} 62. h7 {[%clk 0:00:05]}  Kxc5 {[%clk 0:00:15]} 63. h8=Q {[%clk 0:00:06]}  Kb4 {[%clk 0:00:16]} 64. Qhc3+ {[%clk 0:00:06]}  Ka4 {[%clk 0:00:16]} 65. Qa6# {[%clk 0:00:06]} 1-0


[Site "https://www.chess.com"]

[Event "Titled Tuesday Blitz March 01 Late 2022"]
[White "Burke, Paul"]
[Black "Glavina, Pablo"]
[WhiteFideId "2605767"]
[BlackFideId "100234"]
[WhiteElo "1818"]
[BlackElo "2369"]
[Result "0-1"]
[Round "05"]
[TimeControl "180+1"]
[Date "2022.03.02"]
[WhiteClock "0:01:59"]
[BlackClock "0:01:29"]

1. e4 {[%clk 0:03:00]}  e5 {[%clk 0:02:58]} 2. Nf3 {[%clk 0:03:00]}  Nc6 {[%clk 0:02:58]} 3. Bc4 {[%clk 0:02:59]}  Nf6 {[%clk 0:02:58]} 4. d4 {[%clk 0:02:59]}  exd4 {[%clk 0:02:56]} 5. O-O {[%clk 0:02:59]}  Nxe4 {[%clk 0:02:54]} 6. Re1 {[%clk 0:02:58]}  d5 {[%clk 0:02:54]} 7. Bxd5 {[%clk 0:02:58]}  Qxd5 {[%clk 0:02:55]} 8. Nc3 {[%clk 0:02:58]}  Qh5 {[%clk 0:02:50]} 9. Nxe4 {[%clk 0:02:57]}  Be6 {[%clk 0:02:50]} 10. Neg5 {[%clk 0:02:57]}  O-O-O {[%clk 0:02:49]} 11. Nxe6 {[%clk 0:02:57]}  fxe6 {[%clk 0:02:50]} 12. Qe2 {[%clk 0:02:52]}  e5 {[%clk 0:01:59]} 13. Nxe5 {[%clk 0:02:34]}  Qxe2 {[%clk 0:01:57]} 14. Rxe2 {[%clk 0:02:34]}  Re8 {[%clk 0:01:56]} 15. f4 {[%clk 0:02:29]}  Bd6 {[%clk 0:01:45]} 16. Bd2 {[%clk 0:02:28]}  Nxe5 {[%clk 0:01:39]} 17. fxe5 {[%clk 0:02:28]}  Rxe5 {[%clk 0:01:40]} 18. Rxe5 {[%clk 0:02:24]}  Bxe5 {[%clk 0:01:41]} 19. Re1 {[%clk 0:02:22]}  Re8 {[%clk 0:01:40]} 20. Bf4 {[%clk 0:02:18]}  d3 {[%clk 0:01:32]} 21. Rxe5 {[%clk 0:01:59]}  Rxe5 {[%clk 0:01:29]} 22. Bxe5 {[%clk 0:01:59]}  d2 {[%clk 0:01:29]} 0-1


[Site "https://www.chess.com"]

[Event "Titled Tuesday Blitz March 01 Late 2022"]
[White "Cardoso Cardoso, Jose Gabriel"]
[Black "Ezat, Mohamed"]
[WhiteFideId "4430492"]
[BlackFideId "10600906"]
[WhiteElo "2451"]
[BlackElo "2386"]
[Result "0-1"]
[Round "05"]
[TimeControl "180+1"]
[Date "2022.03.01"]
[WhiteClock "0:00:07"]
[BlackClock "0:00:41"]

1. e4 {[%clk 0:03:00]}  c6 {[%clk 0:02:55]} 2. d4 {[%clk 0:02:56]}  d5 {[%clk 0:02:52]} 3. f3 {[%clk 0:02:46]}  e6 {[%clk 0:02:51]} 4. Be3 {[%clk 0:02:42]}  Nf6 {[%clk 0:02:46]} 5. e5 {[%clk 0:02:32]}  Nfd7 {[%clk 0:02:44]} 6. f4 {[%clk 0:02:33]}  c5 {[%clk 0:02:42]} 7. Nf3 {[%clk 0:02:33]}  Nc6 {[%clk 0:02:42]} 8. Nc3 {[%clk 0:02:34]}  a6 {[%clk 0:02:40]} 9. Qd2 {[%clk 0:02:32]}  b5 {[%clk 0:02:30]} 10. a3 {[%clk 0:02:30]}  Rb8 {[%clk 0:02:22]} 11. Nd1 {[%clk 0:01:41]}  b4 {[%clk 0:02:20]} 12. axb4 {[%clk 0:01:37]}  Rxb4 {[%clk 0:02:17]} 13. c3 {[%clk 0:01:34]}  Rb8 {[%clk 0:02:17]} 14. Bd3 {[%clk 0:01:29]}  g6 {[%clk 0:02:09]} 15. O-O {[%clk 0:01:27]}  Qb6 {[%clk 0:02:08]} 16. g4 {[%clk 0:01:22]}  h5 {[%clk 0:02:06]} 17. h3 {[%clk 0:01:21]}  hxg4 {[%clk 0:02:06]} 18. hxg4 {[%clk 0:01:20]}  a5 {[%clk 0:01:50]} 19. Kg2 {[%clk 0:00:59]}  Ba6 {[%clk 0:01:48]} 20. Kg3 {[%clk 0:00:57]}  f5 {[%clk 0:01:30]} 21. exf6 {[%clk 0:00:46]}  Nxf6 {[%clk 0:01:29]} 22. Bxg6+ {[%clk 0:00:42]}  Kd7 {[%clk 0:01:23]} 23. Rg1 {[%clk 0:00:34]}  Rg8 {[%clk 0:01:19]} 24. Nh4 {[%clk 0:00:33]}  Rxg6 {[%clk 0:01:16]} 25. Nf2 {[%clk 0:00:25]}  Rg8 {[%clk 0:01:11]} 26. Nf3 {[%clk 0:00:22]}  Qxb2 {[%clk 0:01:00]} 27. Qe1 {[%clk 0:00:16]}  Qe2 {[%clk 0:00:50]} 28. Qc1 {[%clk 0:00:10]}  Ne4+ {[%clk 0:00:45]} 29. Nxe4 {[%clk 0:00:10]}  dxe4 {[%clk 0:00:45]} 30. Nh2 {[%clk 0:00:07]}  Rb2 {[%clk 0:00:41]} 0-1


[Site "https://www.chess.com"]